[Event "*** SCC Grand Prix: Titled Tuesday Blitz"]
[Site "Chess.com"]
[Date "2020.08.11"]
[Round "5"]
[White "chesslh19"]
[Black "Zarikovs1999"]
[Result "1/2-1/2"]
[WhiteElo "2178"]
[BlackElo "2367"]
[TimeControl "180+1"]
[EndTime "10:57:18 PDT"]
[Termination "Game drawn by repetition"]

1. e4 {[%clk 0:03:00.9]} 1... g6 {[%clk 0:02:44]} 2. d4 {[%clk 0:03:00.4]} 2...
Bg7 {[%clk 0:02:39.8]} 3. Nc3 {[%clk 0:03:00.6]} 3... d6 {[%clk 0:02:38.1]} 4.
f4 {[%clk 0:02:59.8]} 4... Nc6 {[%clk 0:02:27.9]} 5. d5 {[%clk 0:02:46.4]} 5...
Nd4 {[%clk 0:02:26]} 6. Be3 {[%clk 0:02:40.7]} 6... c5 {[%clk 0:02:24.7]} 7.
Nge2 {[%clk 0:02:28.3]} 7... Qb6 {[%clk 0:02:06.2]} 8. Rb1 {[%clk 0:02:20]} 8...
Bg4 {[%clk 0:02:04.7]} 9. h3 {[%clk 0:02:18.7]} 9... Bxe2 {[%clk 0:02:04]} 10.
Bxe2 {[%clk 0:02:18.6]} 10... Nxe2 {[%clk 0:02:00.8]} 11. Kxe2 {[%clk 0:02:05]}
11... Nf6 {[%clk 0:01:40.5]} 12. Qd3 {[%clk 0:02:04.4]} 12... O-O {[%clk
0:01:37.1]} 13. Rhe1 {[%clk 0:01:15.5]} 13... e6 {[%clk 0:01:24]} 14. Kf3 {[%clk
0:01:08.3]} 14... exd5 {[%clk 0:01:11.1]} 15. Nxd5 {[%clk 0:01:07.5]} 15... Nxd5
{[%clk 0:01:02.5]} 16. Qxd5 {[%clk 0:01:00.2]} 16... Rfe8 {[%clk 0:01:02.6]} 17.
g4 {[%clk 0:00:48.1]} 17... Rad8 {[%clk 0:00:50.5]} 18. c3 {[%clk 0:00:25.1]}
18... Qc7 {[%clk 0:00:50.5]} 19. Rbd1 {[%clk 0:00:23.5]} 19... Qe7 {[%clk
0:00:50.8]} 20. Bf2 {[%clk 0:00:18.8]} 20... b6 {[%clk 0:00:51.3]} 21. Bg3
{[%clk 0:00:18.4]} 21... Kh8 {[%clk 0:00:51.8]} 22. Kg2 {[%clk 0:00:18.3]} 22...
h6 {[%clk 0:00:51.7]} 23. Qd3 {[%clk 0:00:15.6]} 23... h5 {[%clk 0:00:38.3]} 24.
Re2 {[%clk 0:00:15]} 24... Rg8 {[%clk 0:00:35.2]} 25. g5 {[%clk 0:00:12.7]}
25... Rge8 {[%clk 0:00:29.8]} 26. Rde1 {[%clk 0:00:12.2]} 26... Qb7 {[%clk
0:00:28.2]} 27. Qd5 {[%clk 0:00:11.4]} 27... Qc7 {[%clk 0:00:22.6]} 28. h4
{[%clk 0:00:10.3]} 28... Qc8 {[%clk 0:00:21.8]} 29. Qd3 {[%clk 0:00:08.4]} 29...
Qg4 {[%clk 0:00:21.1]} 30. Qf3 {[%clk 0:00:08.4]} 30... Qd7 {[%clk 0:00:21.7]}
31. Qd3 {[%clk 0:00:08.2]} 31... Qc6 {[%clk 0:00:20.8]} 32. Qf3 {[%clk
0:00:08.1]} 32... Qa4 {[%clk 0:00:20.1]} 33. a3 {[%clk 0:00:07.7]} 33... Qc4
{[%clk 0:00:19.8]} 34. Kh2 {[%clk 0:00:07.8]} 34... Rd7 {[%clk 0:00:19.3]} 35.
Rd1 {[%clk 0:00:06.4]} 35... d5 {[%clk 0:00:16.2]} 36. Qd3 {[%clk 0:00:05.1]}
36... Qxd3 {[%clk 0:00:04.7]} 37. Rxd3 {[%clk 0:00:06]} 37... Red8 {[%clk
0:00:05.5]} 38. exd5 {[%clk 0:00:05.3]} 38... Rxd5 {[%clk 0:00:06.4]} 39. Rxd5
{[%clk 0:00:05.6]} 39... Rxd5 {[%clk 0:00:07.3]} 40. Re8+ {[%clk 0:00:06.1]}
40... Kh7 {[%clk 0:00:07.1]} 41. Re7 {[%clk 0:00:06.7]} 41... Rd2+ {[%clk
0:00:07.5]} 42. Kg1 {[%clk 0:00:06.9]} 42... Rxb2 {[%clk 0:00:08.1]} 43. Rxf7
{[%clk 0:00:06.8]} 43... Rb3 {[%clk 0:00:07.6]} 44. Rxa7 {[%clk 0:00:06.6]}
44... Rxc3 {[%clk 0:00:06.4]} 45. Kg2 {[%clk 0:00:07]} 45... Kg8 {[%clk
0:00:05.3]} 46. Rb7 {[%clk 0:00:06]} 46... Rb3 {[%clk 0:00:04.4]} 47. a4 {[%clk
0:00:05.6]} 47... c4 {[%clk 0:00:04.6]} 48. Bf2 {[%clk 0:00:05.5]} 48... c3
{[%clk 0:00:02.7]} 49. Rxb6 {[%clk 0:00:04.5]} 49... Ra3 {[%clk 0:00:02.5]} 50.
Rb8+ {[%clk 0:00:03.8]} 50... Kf7 {[%clk 0:00:02.2]} 51. Rb7+ {[%clk 0:00:03.6]}
51... Kg8 {[%clk 0:00:02.9]} 52. Rb8+ {[%clk 0:00:04]} 52... Kh7 {[%clk
0:00:03.6]} 53. Rc8 {[%clk 0:00:04.2]} 53... Ra2 {[%clk 0:00:03.1]} 54. Kf3
{[%clk 0:00:04.4]} 54... Bh8 {[%clk 0:00:01.4]} 55. Be3 {[%clk 0:00:04.5]} 55...
Bg7 {[%clk 0:00:01.7]} 56. Rc7 {[%clk 0:00:04.7]} 56... c2 {[%clk 0:00:02.1]}
57. Ke4 {[%clk 0:00:04.2]} 57... Rxa4+ {[%clk 0:00:01.7]} 58. Kd3 {[%clk
0:00:04.6]} 58... Ra2 {[%clk 0:00:02.2]} 59. Rxc2 {[%clk 0:00:04.3]} 59... Ra3+
{[%clk 0:00:02.8]} 60. Ke2 {[%clk 0:00:03.8]} 60... Ra4 {[%clk 0:00:03.7]} 61.
Kf3 {[%clk 0:00:04.1]} 61... Ra6 {[%clk 0:00:02.9]} 62. Rc4 {[%clk 0:00:04.1]}
62... Rd6 {[%clk 0:00:03.1]} 63. Re4 {[%clk 0:00:03.7]} 63... Rc6 {[%clk
0:00:03.2]} 64. Re8 {[%clk 0:00:03.2]} 64... Rc7 {[%clk 0:00:02.4]} 65. Re4
{[%clk 0:00:03.7]} 65... Rd7 {[%clk 0:00:02.7]} 66. Re8 {[%clk 0:00:04.1]} 66...
Rc7 {[%clk 0:00:02.3]} 67. Re4 {[%clk 0:00:04.6]} 67... Kg8 {[%clk 0:00:02.9]}
68. Re8+ {[%clk 0:00:04.9]} 68... Kf7 {[%clk 0:00:03.6]} 69. Re4 {[%clk
0:00:05.5]} 69... Rd7 {[%clk 0:00:04.2]} 70. Ra4 {[%clk 0:00:04.9]} 70... Rd1
{[%clk 0:00:04.3]} 71. Ra7+ {[%clk 0:00:04.6]} 71... Kg8 {[%clk 0:00:04.9]} 72.
Ra8+ {[%clk 0:00:05]} 72... Kh7 {[%clk 0:00:05.6]} 73. Ra7 {[%clk 0:00:05.5]}
73... Rf1+ {[%clk 0:00:04.9]} 74. Kg2 {[%clk 0:00:05.1]} 74... Rd1 {[%clk
0:00:04.8]} 75. Kf3 {[%clk 0:00:05]} 75... Rf1+ {[%clk 0:00:04.1]} 76. Kg2
{[%clk 0:00:04.9]} 76... Rd1 {[%clk 0:00:05]} 77. Kf3 {[%clk 0:00:04.9]} 1/2-1/2

[Event "*** SCC Grand Prix: Titled Tuesday Blitz"]
[Site "Chess.com"]
[Date "2020.08.11"]
[Round "5"]
[White "penguingm1"]
[Black "Man-Chuk"]
[Result "1-0"]
[WhiteElo "3012"]
[BlackElo "2838"]
[TimeControl "180+1"]
[EndTime "10:57:19 PDT"]
[Termination "penguingm1 won by resignation"]

1. d4 {[%clk 0:03:00.9]} 1... Nf6 {[%clk 0:03:00.1]} 2. c4 {[%clk 0:03:00.3]}
2... e6 {[%clk 0:03:00.6]} 3. Nc3 {[%clk 0:03:00.6]} 3... Bb4 {[%clk 0:02:59.4]}
4. Qc2 {[%clk 0:03:00.7]} 4... O-O {[%clk 0:02:58.4]} 5. Nf3 {[%clk 0:03:00.6]}
5... c5 {[%clk 0:02:57]} 6. dxc5 {[%clk 0:03:00.5]} 6... Na6 {[%clk 0:02:57.1]}
7. g3 {[%clk 0:03:00.4]} 7... Nxc5 {[%clk 0:02:52.3]} 8. Bg2 {[%clk 0:03:00.5]}
8... b6 {[%clk 0:02:51.7]} 9. O-O {[%clk 0:03:00.5]} 9... Bb7 {[%clk 0:02:49.7]}
10. Nb5 {[%clk 0:02:59.7]} 10... Be4 {[%clk 0:02:33.9]} 11. Qd1 {[%clk
0:02:59.5]} 11... Nb7 {[%clk 0:02:33.9]} 12. a3 {[%clk 0:02:55.4]} 12... Be7
{[%clk 0:02:34.3]} 13. Bf4 {[%clk 0:02:55.5]} 13... Rc8 {[%clk 0:02:21.5]} 14.
Rc1 {[%clk 0:02:55]} 14... a6 {[%clk 0:02:20.3]} 15. Nc3 {[%clk 0:02:54.4]}
15... Bc6 {[%clk 0:02:18.9]} 16. b4 {[%clk 0:02:47.6]} 16... b5 {[%clk
0:02:07.5]} 17. cxb5 {[%clk 0:02:23.8]} 17... axb5 {[%clk 0:02:07.6]} 18. Nd4
{[%clk 0:02:12.7]} 18... Qb6 {[%clk 0:01:51]} 19. Qd3 {[%clk 0:01:50.1]} 19...
Bxg2 {[%clk 0:01:14.1]} 20. Kxg2 {[%clk 0:01:50]} 20... Nd6 {[%clk 0:01:07.3]}
21. Ncxb5 {[%clk 0:01:27]} 21... Nxb5 {[%clk 0:00:48.9]} 22. Nxb5 {[%clk
0:01:26.5]} 22... Nd5 {[%clk 0:00:48.3]} 23. Bd2 {[%clk 0:01:11.8]} 23... f5
{[%clk 0:00:48.5]} 24. Nd4 {[%clk 0:00:35.4]} 24... Ra8 {[%clk 0:00:41.6]} 25.
Rfd1 {[%clk 0:00:19]} 25... Qa6 {[%clk 0:00:36.5]} 26. Qxa6 {[%clk 0:00:07.1]}
26... Rxa6 {[%clk 0:00:37.4]} 27. Nc2 {[%clk 0:00:07.9]} 27... Rb8 {[%clk
0:00:28.9]} 28. Rb1 {[%clk 0:00:06.5]} 28... Kf7 {[%clk 0:00:21.2]} 29. Rb3
{[%clk 0:00:06.8]} 29... g5 {[%clk 0:00:20.6]} 30. Ne3 {[%clk 0:00:06.5]} 30...
Nf6 {[%clk 0:00:16]} 31. Nc4 {[%clk 0:00:05]} 31... d6 {[%clk 0:00:16.1]} 32.
Bxg5 {[%clk 0:00:04.9]} 32... Nd5 {[%clk 0:00:16.6]} 33. Bxe7 {[%clk 0:00:05.1]}
33... Kxe7 {[%clk 0:00:17.5]} 34. Ne3 {[%clk 0:00:04.9]} 34... Nf6 {[%clk
0:00:15.7]} 35. Rc1 {[%clk 0:00:05.3]} 35... Kd7 {[%clk 0:00:14.7]} 36. Nc4
{[%clk 0:00:05.2]} 36... Nd5 {[%clk 0:00:13.1]} 37. Rd3 {[%clk 0:00:04.6]} 37...
Rc6 {[%clk 0:00:10.7]} 38. Rd2 {[%clk 0:00:04.2]} 38... Rbc8 {[%clk 0:00:10.6]}
39. Rdc2 {[%clk 0:00:04.9]} 39... R6c7 {[%clk 0:00:06.6]} 40. Kg1 {[%clk
0:00:03.1]} 40... Ra8 {[%clk 0:00:06.3]} 41. f3 {[%clk 0:00:03.1]} 41... Ke7
{[%clk 0:00:05.1]} 42. Kf2 {[%clk 0:00:03.6]} 42... Nf6 {[%clk 0:00:04.9]} 43.
Na5 {[%clk 0:00:03.9]} 43... Rd7 {[%clk 0:00:02.7]} 44. Rc7 {[%clk 0:00:04]}
44... Nd5 {[%clk 0:00:02.7]} 45. Rxd7+ {[%clk 0:00:04.6]} 45... Kxd7 {[%clk
0:00:03.6]} 46. Rc2 {[%clk 0:00:05.5]} 46... h5 {[%clk 0:00:04.1]} 47. Rd2
{[%clk 0:00:04.4]} 47... Rc8 {[%clk 0:00:03.9]} 48. Rb2 {[%clk 0:00:04.9]} 48...
Rc3 {[%clk 0:00:03.6]} 49. Ra2 {[%clk 0:00:04.5]} 49... f4 {[%clk 0:00:03]} 50.
b5 {[%clk 0:00:04.8]} 50... Rc5 {[%clk 0:00:02.6]} 51. a4 {[%clk 0:00:05.1]}
51... Nc3 {[%clk 0:00:01.9]} 52. Ra1 {[%clk 0:00:05.6]} 52... fxg3+ {[%clk
0:00:01.1]} 53. hxg3 {[%clk 0:00:05.8]} 53... Nd5 {[%clk 0:00:02]} 54. Nc6
{[%clk 0:00:05]} 54... Nb6 {[%clk 0:00:01.4]} 55. g4 {[%clk 0:00:03.8]} 55...
hxg4 {[%clk 0:00:01.1]} 56. fxg4 {[%clk 0:00:04.7]} 56... Rc4 {[%clk 0:00:01.8]}
57. a5 {[%clk 0:00:04.9]} 57... Nd5 {[%clk 0:00:02.7]} 58. a6 {[%clk 0:00:05.4]}
58... Nc7 {[%clk 0:00:03]} 59. a7 {[%clk 0:00:05.9]} 59... Na8 {[%clk
0:00:02.3]} 60. Rh1 {[%clk 0:00:06.4]} 60... Rxg4 {[%clk 0:00:01.9]} 61. Rh7+
{[%clk 0:00:06.6]} 61... Kc8 {[%clk 0:00:01.7]} 62. Rh8+ {[%clk 0:00:07]} 62...
Kb7 {[%clk 0:00:02.4]} 63. Rb8+ {[%clk 0:00:07.6]} 63... Kc7 {[%clk 0:00:02.5]}
64. Rxa8 {[%clk 0:00:08.2]} 64... Ra4 {[%clk 0:00:03.1]} 65. Rh8 {[%clk
0:00:08.3]} 1-0

[Event "*** SCC Grand Prix: Titled Tuesday Blitz"]
[Site "Chess.com"]
[Date "2020.08.11"]
[Round "5"]
[White "Oligan22"]
[Black "Jadeit90"]
[Result "1/2-1/2"]
[WhiteElo "2435"]
[BlackElo "2244"]
[TimeControl "180+1"]
[EndTime "10:57:22 PDT"]
[Termination "Game drawn - insufficient material"]

1. e4 {[%clk 0:03:00.9]} 1... g6 {[%clk 0:02:58.9]} 2. d4 {[%clk 0:03:00.5]}
2... Bg7 {[%clk 0:02:50.4]} 3. Nc3 {[%clk 0:03:00.9]} 3... c5 {[%clk 0:02:50.6]}
4. Nf3 {[%clk 0:02:55.2]} 4... cxd4 {[%clk 0:02:50.9]} 5. Nxd4 {[%clk
0:02:56.1]} 5... Nc6 {[%clk 0:02:51.7]} 6. Be3 {[%clk 0:02:55.8]} 6... Nf6
{[%clk 0:02:52.1]} 7. Bc4 {[%clk 0:02:55.4]} 7... O-O {[%clk 0:02:52.2]} 8. Bb3
{[%clk 0:02:55.9]} 8... a5 {[%clk 0:02:51.5]} 9. O-O {[%clk 0:02:53.4]} 9... a4
{[%clk 0:02:50.2]} 10. Nxa4 {[%clk 0:02:52.1]} 10... Nxe4 {[%clk 0:02:49.6]} 11.
Nb5 {[%clk 0:02:52.3]} 11... d6 {[%clk 0:02:37.3]} 12. c4 {[%clk 0:02:51.7]}
12... Ra6 {[%clk 0:02:35.5]} 13. Qe2 {[%clk 0:02:51.1]} 13... Nf6 {[%clk
0:02:21.4]} 14. Rfd1 {[%clk 0:02:46.1]} 14... Be6 {[%clk 0:02:17.6]} 15. Nc5
{[%clk 0:02:41.5]} 15... Ra8 {[%clk 0:02:14]} 16. Nxe6 {[%clk 0:02:41.5]} 16...
fxe6 {[%clk 0:02:14]} 17. Rac1 {[%clk 0:02:40.4]} 17... Kh8 {[%clk 0:02:12.5]}
18. h3 {[%clk 0:02:35.6]} 18... Na5 {[%clk 0:02:06.3]} 19. Bc2 {[%clk
0:02:27.2]} 19... Rc8 {[%clk 0:02:03.5]} 20. b3 {[%clk 0:02:27.1]} 20... Nc6
{[%clk 0:02:02.1]} 21. Bb1 {[%clk 0:02:25.5]} 21... Qe8 {[%clk 0:01:53.6]} 22.
Bg5 {[%clk 0:02:24.9]} 22... Qf7 {[%clk 0:01:53.5]} 23. Re1 {[%clk 0:02:25]}
23... e5 {[%clk 0:01:51.3]} 24. Rcd1 {[%clk 0:02:13.7]} 24... Nh5 {[%clk
0:01:50.8]} 25. Be4 {[%clk 0:02:12.3]} 25... Nf4 {[%clk 0:01:50.2]} 26. Qf3
{[%clk 0:02:09.3]} 26... h6 {[%clk 0:01:39.7]} 27. Bxf4 {[%clk 0:02:09.2]} 27...
exf4 {[%clk 0:01:38.4]} 28. Bd5 {[%clk 0:02:09.4]} 28... Qf6 {[%clk 0:01:28.8]}
29. Re6 {[%clk 0:02:09.5]} 29... Qg5 {[%clk 0:01:18.9]} 30. h4 {[%clk
0:02:04.1]} 30... Qxh4 {[%clk 0:01:14.3]} 31. Qe4 {[%clk 0:01:49.5]} 31... Ne5
{[%clk 0:01:12.5]} 32. Bxb7 {[%clk 0:01:48.2]} 32... Rb8 {[%clk 0:01:11.3]} 33.
Bd5 {[%clk 0:01:41.4]} 33... Ng4 {[%clk 0:01:00.2]} 34. Qf3 {[%clk 0:01:18.2]}
34... Rf5 {[%clk 0:00:42.5]} 35. Rxg6 {[%clk 0:00:57.8]} 35... Rh5 {[%clk
0:00:42.2]} 36. g3 {[%clk 0:00:52.8]} 36... Qh2+ {[%clk 0:00:34.9]} 37. Kf1
{[%clk 0:00:52]} 37... Ne5 {[%clk 0:00:34.7]} 38. Qe4 {[%clk 0:00:24.9]} 38...
Nxg6 {[%clk 0:00:34.6]} 39. Qxg6 {[%clk 0:00:25.8]} 39... fxg3 {[%clk
0:00:34.7]} 40. Qxg3 {[%clk 0:00:25.5]} 40... Rf8 {[%clk 0:00:30.5]} 41. Qxh2
{[%clk 0:00:23.8]} 41... Rxh2 {[%clk 0:00:31.4]} 42. Rd2 {[%clk 0:00:24.5]}
42... Rh3 {[%clk 0:00:23.5]} 43. Ke2 {[%clk 0:00:23.5]} 43... h5 {[%clk
0:00:19.8]} 44. Nc7 {[%clk 0:00:18.7]} 44... Rf5 {[%clk 0:00:17.3]} 45. Ne6
{[%clk 0:00:16.4]} 45... Re5+ {[%clk 0:00:17.6]} 46. Kf1 {[%clk 0:00:16.6]}
46... Bf6 {[%clk 0:00:17.9]} 47. Kg2 {[%clk 0:00:16]} 47... Rc3 {[%clk
0:00:16.1]} 48. Nf8 {[%clk 0:00:15.9]} 48... Kg7 {[%clk 0:00:11.2]} 49. Ne6+
{[%clk 0:00:15.7]} 49... Kh6 {[%clk 0:00:11]} 50. Nf4 {[%clk 0:00:14.7]} 50...
h4 {[%clk 0:00:08.3]} 51. f3 {[%clk 0:00:13.5]} 51... Bg5 {[%clk 0:00:08.6]} 52.
Rd4 {[%clk 0:00:12.6]} 52... Bxf4 {[%clk 0:00:08.8]} 53. Rxf4 {[%clk 0:00:13.5]}
53... Re2+ {[%clk 0:00:09.2]} 54. Kh3 {[%clk 0:00:13.5]} 54... Rxa2 {[%clk
0:00:09.1]} 55. Rxh4+ {[%clk 0:00:10.7]} 55... Kg5 {[%clk 0:00:09.5]} 56. Rg4+
{[%clk 0:00:09.7]} 56... Kf6 {[%clk 0:00:09.9]} 57. Rf4+ {[%clk 0:00:09.3]}
57... Kg5 {[%clk 0:00:10.2]} 58. Rg4+ {[%clk 0:00:09.5]} 58... Kf6 {[%clk
0:00:10.7]} 59. Re4 {[%clk 0:00:09.1]} 59... Rxf3+ {[%clk 0:00:08.9]} 60. Kg4
{[%clk 0:00:09.5]} 60... Rxb3 {[%clk 0:00:09]} 61. Re6+ {[%clk 0:00:09.8]} 61...
Kg7 {[%clk 0:00:08.4]} 62. Rxe7+ {[%clk 0:00:10]} 62... Kf8 {[%clk 0:00:07.9]}
63. Rd7 {[%clk 0:00:09.6]} 63... Rbb2 {[%clk 0:00:05.3]} 64. Rxd6 {[%clk
0:00:09.3]} 64... Ke7 {[%clk 0:00:05.7]} 65. Re6+ {[%clk 0:00:09.6]} 65... Kd7
{[%clk 0:00:05.9]} 66. Rh6 {[%clk 0:00:08.2]} 66... Rd2 {[%clk 0:00:04.9]} 67.
Rh7+ {[%clk 0:00:08.3]} 67... Kd6 {[%clk 0:00:05.2]} 68. Rh6+ {[%clk 0:00:08.8]}
68... Kc5 {[%clk 0:00:05.5]} 69. Rc6+ {[%clk 0:00:08.2]} 69... Kd4 {[%clk
0:00:05.8]} 70. Rd6 {[%clk 0:00:07.1]} 70... Kc5 {[%clk 0:00:06]} 71. Rd8 {[%clk
0:00:07]} 71... Ra4 {[%clk 0:00:05.6]} 72. Kf5 {[%clk 0:00:06.6]} 72... Rxc4
{[%clk 0:00:03.8]} 73. Rc8+ {[%clk 0:00:07]} 73... Kxd5 {[%clk 0:00:04.2]} 74.
Rd8+ {[%clk 0:00:07.5]} 74... Kc5 {[%clk 0:00:03.9]} 75. Rxd2 {[%clk 0:00:08.1]}
75... Kb5 {[%clk 0:00:03.6]} 76. Rb2+ {[%clk 0:00:07.8]} 76... Kc5 {[%clk
0:00:03.8]} 77. Re2 {[%clk 0:00:06.3]} 77... Kb4 {[%clk 0:00:03.7]} 78. Re4
{[%clk 0:00:06.4]} 78... Rxe4 {[%clk 0:00:03.8]} 79. Kxe4 {[%clk 0:00:07.3]}
1/2-1/2

[Event "*** SCC Grand Prix: Titled Tuesday Blitz"]
[Site "Chess.com"]
[Date "2020.08.11"]
[Round "5"]
[White "Karina_Ivanova"]
[Black "Na_binci"]
[Result "0-1"]
[WhiteElo "2204"]
[BlackElo "1983"]
[TimeControl "180+1"]
[EndTime "10:57:22 PDT"]
[Termination "Na_binci won on time"]

1. d4 {[%clk 0:02:59.4]} 1... Nf6 {[%clk 0:02:58.2]} 2. Nf3 {[%clk 0:02:59.2]}
2... g6 {[%clk 0:02:57.8]} 3. g3 {[%clk 0:02:58.7]} 3... Bg7 {[%clk 0:02:56.8]}
4. Bg2 {[%clk 0:02:59.6]} 4... O-O {[%clk 0:02:56.3]} 5. O-O {[%clk 0:03:00.5]}
5... d6 {[%clk 0:02:56.6]} 6. c4 {[%clk 0:03:01.2]} 6... c5 {[%clk 0:02:55.4]}
7. Nc3 {[%clk 0:03:01]} 7... Nc6 {[%clk 0:02:54]} 8. dxc5 {[%clk 0:02:57.9]}
8... dxc5 {[%clk 0:02:54.9]} 9. Bf4 {[%clk 0:02:57.6]} 9... Nh5 {[%clk
0:02:53.7]} 10. Be3 {[%clk 0:02:55.7]} 10... Nd4 {[%clk 0:02:51.6]} 11. Qd2
{[%clk 0:02:40.9]} 11... Be6 {[%clk 0:02:35.5]} 12. b3 {[%clk 0:02:32.4]} 12...
Qc8 {[%clk 0:02:30.6]} 13. Rfd1 {[%clk 0:02:30.5]} 13... Rd8 {[%clk 0:02:29.5]}
14. Qc1 {[%clk 0:02:15.1]} 14... Rb8 {[%clk 0:01:04.5]} 15. Rb1 {[%clk
0:02:00.2]} 15... Bf5 {[%clk 0:00:55.9]} 16. Rb2 {[%clk 0:01:55.5]} 16... Nxf3+
{[%clk 0:00:29.8]} 17. Bxf3 {[%clk 0:01:54.3]} 17... Rxd1+ {[%clk 0:00:30.7]}
18. Nxd1 {[%clk 0:01:53.6]} 18... Bxb2 {[%clk 0:00:29.7]} 19. Qxb2 {[%clk
0:01:53.5]} 19... Ng7 {[%clk 0:00:28.8]} 20. Qe5 {[%clk 0:01:40.3]} 20... b6
{[%clk 0:00:28.3]} 21. Qxe7 {[%clk 0:01:36.6]} 21... Qd8 {[%clk 0:00:28.2]} 22.
Qxd8+ {[%clk 0:01:32.5]} 22... Rxd8 {[%clk 0:00:29.1]} 23. Nc3 {[%clk
0:01:33.3]} 23... Ne6 {[%clk 0:00:27.8]} 24. Nd5 {[%clk 0:01:31.6]} 24... Nd4
{[%clk 0:00:26.3]} 25. Kg2 {[%clk 0:01:20.4]} 25... Nxf3 {[%clk 0:00:21.4]} 26.
Kxf3 {[%clk 0:01:20.5]} 26... Bb1 {[%clk 0:00:22.3]} 27. a3 {[%clk 0:01:17.2]}
27... Bc2 {[%clk 0:00:21.2]} 28. b4 {[%clk 0:01:16.6]} 28... cxb4 {[%clk
0:00:21.2]} 29. Nxb4 {[%clk 0:01:06.5]} 29... Bb3 {[%clk 0:00:20.5]} 30. c5
{[%clk 0:01:06.1]} 30... bxc5 {[%clk 0:00:20.6]} 31. Bxc5 {[%clk 0:01:06]} 31...
Rc8 {[%clk 0:00:20.9]} 32. Bxa7 {[%clk 0:01:04.5]} 32... Ra8 {[%clk 0:00:19.7]}
33. Bc5 {[%clk 0:00:46.8]} 33... Rxa3 {[%clk 0:00:20.6]} 34. Nd3 {[%clk
0:00:45.7]} 34... Ra8 {[%clk 0:00:19.5]} 35. h4 {[%clk 0:00:40.7]} 35... Bd5+
{[%clk 0:00:19.7]} 36. Kf4 {[%clk 0:00:38.9]} 36... Bc4 {[%clk 0:00:18.4]} 37.
Kf3 {[%clk 0:00:26.3]} 37... Re8 {[%clk 0:00:18.2]} 38. Nf4 {[%clk 0:00:24.4]}
38... f5 {[%clk 0:00:17.6]} 39. e3 {[%clk 0:00:22.1]} 39... Bb5 {[%clk
0:00:15.4]} 40. Bd4 {[%clk 0:00:21.5]} 40... Bc6+ {[%clk 0:00:15.5]} 41. Ke2
{[%clk 0:00:21.7]} 41... Ra8 {[%clk 0:00:14.9]} 42. Nd3 {[%clk 0:00:17.5]} 42...
Ra2+ {[%clk 0:00:15.8]} 43. Nb2 {[%clk 0:00:16.7]} 43... Be4 {[%clk 0:00:14.5]}
44. f3 {[%clk 0:00:16.1]} 44... Bd5 {[%clk 0:00:14.8]} 45. Kd3 {[%clk
0:00:15.7]} 45... Kf7 {[%clk 0:00:14.6]} 46. Ke2 {[%clk 0:00:15.7]} 46... Bc4+
{[%clk 0:00:13.7]} 47. Kf2 {[%clk 0:00:15.2]} 47... Bd5 {[%clk 0:00:14.6]} 48.
g4 {[%clk 0:00:15.3]} 48... fxg4 {[%clk 0:00:12.5]} 49. fxg4 {[%clk 0:00:15.5]}
49... h6 {[%clk 0:00:12.2]} 50. g5 {[%clk 0:00:14.6]} 50... h5 {[%clk
0:00:10.9]} 51. Kg3 {[%clk 0:00:14.6]} 51... Ra3 {[%clk 0:00:09.3]} 52. Kf4
{[%clk 0:00:13.6]} 52... Be6 {[%clk 0:00:08.3]} 53. Nd1 {[%clk 0:00:11.9]} 53...
Ra2 {[%clk 0:00:08.3]} 54. Nb2 {[%clk 0:00:11.5]} 54... Ra1 {[%clk 0:00:07.9]}
55. Nd3 {[%clk 0:00:10.8]} 55... Rf1+ {[%clk 0:00:08]} 56. Kg3 {[%clk
0:00:10.1]} 56... Rd1 {[%clk 0:00:07.9]} 57. Ne5+ {[%clk 0:00:09.8]} 57... Kf8
{[%clk 0:00:06.1]} 58. Nxg6+ {[%clk 0:00:09.7]} 58... Kg8 {[%clk 0:00:05.2]} 59.
Nf4 {[%clk 0:00:10.6]} 59... Bg4 {[%clk 0:00:04.5]} 60. g6 {[%clk 0:00:09.9]}
60... Rg1+ {[%clk 0:00:04.6]} 61. Kh2 {[%clk 0:00:09.9]} 61... Rb1 {[%clk
0:00:05.3]} 62. Nd5 {[%clk 0:00:06.4]} 62... Rc1 {[%clk 0:00:05.4]} 63. Nf6+
{[%clk 0:00:06.2]} 63... Kg7 {[%clk 0:00:05.3]} 64. Nxg4+ {[%clk 0:00:06.3]}
64... Kxg6 {[%clk 0:00:06.2]} 65. Ne5+ {[%clk 0:00:06.6]} 65... Kf5 {[%clk
0:00:06.4]} 66. Kg3 {[%clk 0:00:06.8]} 66... Rg1+ {[%clk 0:00:05.5]} 67. Kf2
{[%clk 0:00:07]} 67... Rh1 {[%clk 0:00:05]} 68. Kg3 {[%clk 0:00:06.7]} 68...
Rg1+ {[%clk 0:00:05.2]} 69. Kh2 {[%clk 0:00:06.9]} 69... Re1 {[%clk 0:00:04.7]}
70. Kg2 {[%clk 0:00:07.1]} 70... Re2+ {[%clk 0:00:03.9]} 71. Kf3 {[%clk
0:00:06.8]} 71... Re1 {[%clk 0:00:03.7]} 72. Nf7 {[%clk 0:00:04.7]} 72... Rf1+
{[%clk 0:00:03]} 73. Kg2 {[%clk 0:00:04.7]} 73... Re1 {[%clk 0:00:02.7]} 74. Ng5
{[%clk 0:00:04.6]} 74... Kg4 {[%clk 0:00:02.7]} 75. Nf3 {[%clk 0:00:04.1]} 75...
Re2+ {[%clk 0:00:02.5]} 76. Kf1 {[%clk 0:00:03.1]} 76... Kxf3 {[%clk 0:00:03.4]}
77. Bc5 {[%clk 0:00:01.7]} 77... Rh2 {[%clk 0:00:03]} 0-1